fUSD/lending_fUSD_20260512
["ID","MTS","AMOUNT","RATE_DAILY","PERIOD"]
[422076937,1778553042000,-150.0,0.0002622,4]
[422076939,1778553042000,-326.55,0.00026229,7]
[422076943,1778553042000,-330.87,0.00026257,2]
[422076945,1778553042000,-150.0,0.00026262,4]
[422076946,1778553042000,-500.0,0.00026273,2]
[422076950,1778553042000,-326.55,0.00026286,2]
[422076949,1778553042000,-330.87,0.00026286,2]
[422076944,1778553042000,-326.55,0.00026257,2]
[422076942,1778553042000,-150.0,0.00026247,4]
[422076940,1778553042000,-161.73,0.00026246,30]
[422076941,1778553042000,-161.21,0.00026246,30]
[422076947,1778553042000,-175.56571433,0.00026273,2]
[422076952,1778553042000,-150.0,0.00026302,4]
[422076962,1778553042000,-161.21,0.00026356,2]
[422076954,1778553042000,-330.87,0.00026315,7]
[422076955,1778553042000,-326.55,0.00026315,7]
[422076961,1778553042000,-161.73,0.00026356,2]
[422076951,1778553042000,-516.5,0.00026296,2]
[422076958,1778553042000,-326.55,0.00026344,7]
[422076960,1778553042000,-250.67961379,0.0002635,2]
[422076953,1778553042000,-503.0,0.00026315,4]
[422076959,1778553042000,-250.67961379,0.0002635,2]
[422076956,1778553042000,-150.0,0.00026329,4]
[422076963,1778553042000,-156.51155349,0.00026356,4]
[422076994,1778553042000,-150.0,0.00026838,2]
[422076993,1778553042000,-471.99431842,0.00026821,2]
[422077048,1778553042000,-503.0,0.00030149,8]
[422077028,1778553042000,-1000.0,0.0002827,120]
[422077023,1778553042000,-522.58,0.000278,7]
[422077024,1778553042000,-500.0,0.000278,7]
[422077022,1778553042000,-426.0,0.00027441,120]
[422077027,1778553042000,-516.5,0.00028267,2]
[422077025,1778553042000,-150.0,0.00028192,2]
[422077026,1778553042000,-503.0,0.00028232,6]
[422077029,1778553042000,-256.0,0.00028293,120]
[422077033,1778553042000,-1900.0,0.000289,10]
[422077036,1778553042000,-477.88,0.00029339,2]
[422077035,1778553042000,-1058.25,0.000292,2]
[422077038,1778553042000,-150.0,0.00029601,2]
[422077032,1778553042000,-426.0,0.00028813,120]
[422077037,1778553042000,-1058.25,0.000296,2]
[422077042,1778553042000,-211.30868792,0.00029794,17]
[422077041,1778553042000,-256.0,0.00029708,120]
[422077039,1778553042000,-477.88,0.00029613,2]
[422077043,1778553042000,-317.66,0.00029813,120]
[422077044,1778553042000,-473.33,0.00029887,2]
[422077046,1778553042000,-158.89,0.00030137,2]
[422077049,1778553042000,-500.0,0.00030173,5]
[422077045,1778553042000,-1058.25,0.0003,30]
[422077050,1778553042000,-1500000.0,0.00030197,2]
[422077047,1778553042000,-200.0,0.00030137,2]
[422077051,1778553042000,-769.95532185,0.00030197,2]
[422076992,1778553042000,-326.73,0.00026575,7]
[422077040,1778553042000,-152.7181,0.00029641,30]
[422077031,1778553042000,-1058.25,0.000288,2]
[422077034,1778553042000,-477.88,0.00029065,2]
[422077019,1778553042000,-1921.21,0.00027397,10]
[422077030,1778553042000,-509.69433434,0.00028739,17]
[422076995,1778553042000,-150.0,0.00026849,2]
[422076998,1778553042000,-152.0,0.00027009,7]
[422077004,1778553042000,-152.0,0.00027009,7]
[422076999,1778553042000,-152.0,0.00027009,7]
[422077005,1778553042000,-152.0,0.00027044,7]
[422076997,1778553042000,-150.0,0.00026946,30]
[422077000,1778553042000,-152.0,0.00027009,7]
[422077006,1778553042000,-152.0,0.00027044,7]
[422077001,1778553042000,-152.0,0.00027009,7]
[422077007,1778553042000,-152.0,0.00027044,7]
[422077002,1778553042000,-152.0,0.00027009,7]
[422077003,1778553042000,-152.0,0.00027009,7]
[422076996,1778553042000,-150.0,0.00026859,2]
[422077010,1778553042000,-152.0,0.0002708,7]
[422077008,1778553042000,-152.0,0.00027044,7]
[422077015,1778553042000,-597.09,0.00027358,7]
[422077017,1778553042000,-158.89,0.00027397,2]
[422077011,1778553042000,-152.0,0.0002708,7]
[422077021,1778553042000,-3176.4,0.000274,14]
[422077012,1778553042000,-152.0,0.0002708,7]
[422077016,1778553042000,-1500.0,0.00027397,2]
[422077014,1778553042000,-200.0,0.00027103,2]
[422077013,1778553042000,-214.86625456,0.000271,7]
[422077018,1778553042000,-2305.45,0.00027397,10]
[422077020,1778553042000,-227.2,0.000274,7]
[422077009,1778553042000,-152.0,0.00027044,7]
[422077093,1778553043000,-1228.222,0.0003248,2]
[422077090,1778553043000,-503.0,0.00032067,10]
[422077091,1778553043000,-5530.0,0.000321,5]
[422077076,1778553043000,-522.58,0.000314,7]
[422077089,1778553043000,-200.0,0.00032055,2]
[422077086,1778553043000,-403.0,0.00032,120]
[422077087,1778553043000,-209.83290005,0.00032,120]
[422077085,1778553043000,-208.1657297,0.00032,120]
[422077084,1778553043000,-300.0,0.000319,11]
[422077083,1778553043000,-153.0,0.00031657,30]
[422077092,1778553043000,-516.5,0.0003221,5]
[422077088,1778553043000,-205.46488818,0.00032,120]
[422077094,1778553043000,-181.125,0.0003248,2]
[422077099,1778553043000,-386.0,0.00032591,30]
[422077105,1778553043000,-500.0,0.00032603,10]
[422077100,1778553043000,-870.0,0.00032591,30]
[422077097,1778553043000,-152.0,0.00032591,30]
[422077101,1778553043000,-158.0,0.00032591,30]
[422077098,1778553043000,-152.0,0.00032591,30]
[422077103,1778553043000,-500.0,0.00032603,10]
[422077102,1778553043000,-500.0,0.00032603,10]
[422077095,1778553043000,-931.438,0.0003248,2]
[422077104,1778553043000,-500.0,0.00032603,10]
[422077117,1778553043000,-465.74461559,0.00032603,10]
[422077107,1778553043000,-500.0,0.00032603,10]
[422077075,1778553043000,-5530.0,0.000313,3]
[422077096,1778553043000,-317.66,0.00032523,120]
[422077073,1778553043000,-256.0,0.00031194,120]
[422077118,1778553043000,-500.0,0.00032603,10]
[422077074,1778553043000,-1058.25,0.000312,30]
[422077055,1778553043000,-16578.0,0.000305,2]
[422077054,1778553043000,-1058.25,0.000304,30]
[422077052,1778553043000,-516.5,0.00030239,2]
[422077053,1778553043000,-426.0,0.00030253,120]
[422077062,1778553043000,-168.0,0.00030657,30]
[422077059,1778553043000,-870.0,0.00030591,30]
[422077067,1778553043000,-200.0,0.000309,11]
[422077058,1778553043000,-386.0,0.00030591,30]
[422077057,1778553043000,-152.0,0.00030591,30]
[422077061,1778553043000,-153.0,0.00030657,30]
[422077065,1778553043000,-500.0,0.000309,11]
[422077068,1778553043000,-150.0,0.00031081,2]
[422077079,1778553043000,-152.0,0.00031591,30]
[422077056,1778553043000,-152.0,0.00030591,30]
[422077060,1778553043000,-158.0,0.00030591,30]
[422077064,1778553043000,-1058.25,0.000308,30]
[422077063,1778553043000,-3176.4,0.000308,14]
[422077070,1778553043000,-6695.4363559,0.00031114,2]
[422077080,1778553043000,-386.0,0.00031591,30]
[422077069,1778553043000,-200.0,0.00031096,2]
[422077072,1778553043000,-419.75329,0.00031114,2]
[422077082,1778553043000,-158.0,0.00031591,30]
[422077081,1778553043000,-870.0,0.00031591,30]
[422077071,1778553043000,-281515.3303035,0.00031114,2]
[422077078,1778553043000,-152.0,0.00031591,30]
[422077077,1778553043000,-1000.0,0.000315,7]
[422077066,1778553043000,-300.0,0.000309,11]
[422077120,1778553043000,-500.0,0.00032603,10]
[422077173,1778553043000,-386.0,0.00034591,30]
[422077109,1778553043000,-500.0,0.00032603,10]
[422077149,1778553043000,-150.0,0.00032636,2]
[422077158,1778553043000,-386.0,0.00033591,30]
[422077151,1778553043000,-256.0,0.00032753,120]
[422077150,1778553043000,-153.0,0.00032657,30]
[422077154,1778553043000,-468.96,0.00032877,30]
[422077152,1778553043000,-158.89,0.00032877,2]
[422077155,1778553043000,-350.0,0.00033014,5]
[422077156,1778553043000,-152.0,0.00033591,30]
[422077157,1778553043000,-152.0,0.00033591,30]
[422077153,1778553043000,-167.88894362,0.00032877,60]
[422077159,1778553043000,-870.0,0.00033591,30]
[422077160,1778553043000,-158.0,0.00033591,30]
[422077148,1778553043000,-268.87677318,0.00032603,10]
[422077161,1778553043000,-153.0,0.00033657,30]
[422077164,1778553043000,-291.85308073,0.00033767,36]
[422077167,1778553043000,-503.0,0.00033984,12]
[422077162,1778553043000,-3176.4,0.000337,14]
[422077166,1778553043000,-350.0,0.00033973,5]
[422077163,1778553043000,-884.183,0.00033767,36]
[422077168,1778553043000,-516.5,0.00034182,7]
[422077171,1778553043000,-152.0,0.00034591,30]
[422077172,1778553043000,-152.0,0.00034591,30]
[422077170,1778553043000,-256.0,0.00034391,120]
[422077175,1778553043000,-164.74496523,0.00034591,30]
[422077119,1778553043000,-500.0,0.00032603,10]
[422077174,1778553043000,-870.0,0.00034591,30]
[422077165,1778553043000,-169.48,0.00033836,2]
[422077147,1778553043000,-338.72809111,0.00032603,10]
[422077169,1778553043000,-150.0,0.00034267,2]
[422077145,1778553043000,-150.0,0.00032603,10]
[422077111,1778553043000,-515.72234033,0.00032603,10]
[422077146,1778553043000,-150.0,0.00032603,10]
[422077115,1778553043000,-500.0,0.00032603,10]
[422077113,1778553043000,-500.0,0.00032603,10]
[422077116,1778553043000,-500.0,0.00032603,10]
[422077114,1778553043000,-500.0,0.00032603,10]
[422077121,1778553043000,-500.0,0.00032603,10]
[422077123,1778553043000,-500.0,0.00032603,10]
[422077134,1778553043000,-500.0,0.00032603,10]
[422077125,1778553043000,-500.0,0.00032603,10]
[422077127,1778553043000,-500.0,0.00032603,10]
[422077130,1778553043000,-500.0,0.00032603,10]
[422077133,1778553043000,-500.0,0.00032603,10]
[422077112,1778553043000,-506.44330256,0.00032603,10]
[422077131,1778553043000,-220.80068816,0.00032603,10]
[422077132,1778553043000,-500.0,0.00032603,10]
[422077144,1778553043000,-500.0,0.00032603,10]
[422077143,1778553043000,-150.0,0.00032603,10]
[422077136,1778553043000,-500.0,0.00032603,10]
[422077139,1778553043000,-500.0,0.00032603,10]
[422077142,1778553043000,-500.0,0.00032603,10]
[422077138,1778553043000,-500.0,0.00032603,10]
[422077137,1778553043000,-500.0,0.00032603,10]
[422077141,1778553043000,-150.0,0.00032603,10]
[422077135,1778553043000,-500.0,0.00032603,10]
[422077129,1778553043000,-252.45324732,0.00032603,10]
[422077140,1778553043000,-500.0,0.00032603,10]
[422077215,1778553044000,-300.0,0.00037056,2]
[422077214,1778553044000,-300.0,0.00037056,2]
[422077209,1778553044000,-300.0,0.00037056,2]
[422077203,1778553044000,-232.33955672,0.00036844,27]
[422077216,1778553044000,-300.0,0.00037056,2]
[422077212,1778553044000,-300.0,0.00037056,2]
[422077211,1778553044000,-1094.29459015,0.00037056,2]
[422077218,1778553044000,-300.0,0.00037056,2]
[422077207,1778553044000,-155.69007794,0.00036987,2]
[422077217,1778553044000,-300.0,0.00037056,2]
[422077208,1778553044000,-622.13755144,0.00036987,2]
[422077210,1778553044000,-300.0,0.00037056,2]
[422077213,1778553044000,-300.0,0.00037056,2]
[422077227,1778553044000,-300.0,0.00037056,2]
[422077225,1778553044000,-300.0,0.00037056,2]
[422077230,1778553044000,-300.0,0.00037056,2]
[422077220,1778553044000,-300.0,0.00037056,2]
[422077221,1778553044000,-300.0,0.00037056,2]
[422077222,1778553044000,-300.0,0.00037056,2]
[422077229,1778553044000,-604.21547136,0.00037056,2]
[422077223,1778553044000,-300.0,0.00037056,2]
[422077226,1778553044000,-300.0,0.00037056,2]
[422077224,1778553044000,-492.49408754,0.00037056,2]
[422077231,1778553044000,-300.0,0.00037056,2]
[422077228,1778553044000,-300.0,0.00037056,2]
[422077200,1778553044000,-870.0,0.00036591,30]
[422077219,1778553044000,-300.0,0.00037056,2]
[422077204,1778553044000,-686.0,0.00036854,30]
[422077176,1778553044000,-153.0,0.00034657,30]
[422077205,1778553044000,-278.0,0.00036854,30]
[422077233,1778553044000,-527.54022817,0.00037056,2]
[422077181,1778553044000,-152.0,0.00035591,30]
[422077179,1778553044000,-457.3,0.00034931,5]
[422077180,1778553044000,-1500.0,0.000352,7]
[422077177,1778553044000,-152.0,0.0003473,120]
[422077178,1778553044000,-152.0,0.000348,120]
[422077183,1778553044000,-386.0,0.00035591,30]
[422077194,1778553044000,-150.0,0.00035981,2]
[422077182,1778553044000,-152.0,0.00035591,30]
[422077193,1778553044000,-503.0,0.00035901,14]
[422077184,1778553044000,-870.0,0.00035591,30]
[422077185,1778553044000,-522.58,0.000356,7]
[422077206,1778553044000,-994.0,0.00036854,30]
[422077188,1778553044000,-500.0,0.00035616,7]
[422077191,1778553044000,-158.89,0.00035616,2]
[422077190,1778553044000,-511.68054206,0.00035616,7]
[422077192,1778553044000,-156.0,0.00035657,30]
[422077189,1778553044000,-500.0,0.00035616,7]
[422077187,1778553044000,-544.18558404,0.00035616,120]
[422077198,1778553044000,-152.0,0.00036591,30]
[422077195,1778553044000,-256.0,0.0003611,120]
[422077197,1778553044000,-152.0,0.00036591,30]
[422077199,1778553044000,-386.0,0.00036591,30]
[422077201,1778553044000,-500.0,0.00036655,5]
[422077196,1778553044000,-516.5,0.00036153,30]
[422077202,1778553044000,-500.0,0.00036655,5]
[422077186,1778553044000,-500.0,0.00035616,120]
[422077232,1778553044000,-300.0,0.00037056,2]
[422077292,1778553044000,-300.0,0.00037056,2]
[422077237,1778553044000,-590.52830037,0.00037056,2]
[422077267,1778553044000,-310.77293504,0.00037056,2]
[422077277,1778553044000,-300.0,0.00037056,2]
[422077269,1778553044000,-463.6616139,0.00037056,2]
[422077276,1778553044000,-300.0,0.00037056,2]
[422077271,1778553044000,-576.93890108,0.00037056,2]
[422077275,1778553044000,-300.0,0.00037056,2]
[422077268,1778553044000,-300.0,0.00037056,2]
[422077270,1778553044000,-300.0,0.00037056,2]
[422077273,1778553044000,-451.72868137,0.00037056,2]
[422077272,1778553044000,-300.0,0.00037056,2]
[422077274,1778553044000,-300.0,0.00037056,2]
[422077289,1778553044000,-1094.29459015,0.00037056,2]
[422077260,1778553044000,-300.0,0.00037056,2]
[422077278,1778553044000,-300.0,0.00037056,2]
[422077280,1778553044000,-309.70196001,0.00037056,2]
[422077281,1778553044000,-483.88780455,0.00037056,2]
[422077285,1778553044000,-1117.14215031,0.00037056,2]
[422077284,1778553044000,-300.0,0.00037056,2]
[422077283,1778553044000,-300.0,0.00037056,2]
[422077286,1778553044000,-300.0,0.00037056,2]
[422077288,1778553044000,-300.0,0.00037056,2]
[422077287,1778553044000,-300.0,0.00037056,2]
[422077290,1778553044000,-300.0,0.00037056,2]
[422077291,1778553044000,-300.0,0.00037056,2]
[422077293,1778553044000,-300.0,0.00037056,2]
[422077236,1778553044000,-893.04482543,0.00037056,2]
[422077282,1778553044000,-300.0,0.00037056,2]
[422077262,1778553044000,-300.0,0.00037056,2]
[422077279,1778553044000,-300.0,0.00037056,2]
[422077266,1778553044000,-300.0,0.00037056,2]
[422077258,1778553044000,-1146.71946024,0.00037056,2]
[422077234,1778553044000,-300.0,0.00037056,2]
[422077242,1778553044000,-300.0,0.00037056,2]
[422077240,1778553044000,-301.67321972,0.00037056,2]
[422077238,1778553044000,-300.0,0.00037056,2]
[422077235,1778553044000,-1066.50381929,0.00037056,2]
[422077239,1778553044000,-725.78568352,0.00037056,2]
[422077244,1778553044000,-300.0,0.00037056,2]
[422077254,1778553044000,-343.84381003,0.00037056,2]
[422077243,1778553044000,-300.45062341,0.00037056,2]
[422077245,1778553044000,-300.0,0.00037056,2]
[422077246,1778553044000,-300.0,0.00037056,2]
[422077248,1778553044000,-300.0,0.00037056,2]
[422077250,1778553044000,-853.86030012,0.00037056,2]
[422077241,1778553044000,-300.0,0.00037056,2]
[422077255,1778553044000,-526.68525168,0.00037056,2]
[422077247,1778553044000,-300.0,0.00037056,2]
[422077261,1778553044000,-864.10865205,0.00037056,2]
[422077263,1778553044000,-1809.24690158,0.00037056,2]
[422077257,1778553044000,-300.0,0.00037056,2]
[422077259,1778553044000,-309.46605895,0.00037056,2]
[422077264,1778553044000,-300.0,0.00037056,2]
[422077256,1778553044000,-300.0,0.00037056,2]
[422077249,1778553044000,-300.0,0.00037056,2]
[422077252,1778553044000,-1911.66155628,0.00037056,2]
[422077251,1778553044000,-300.0,0.00037056,2]
[422077253,1778553044000,-300.0,0.00037056,2]
[422077265,1778553044000,-300.0,0.00037056,2]
[422077332,1778553045000,-343.84381003,0.00037056,2]
[422077334,1778553045000,-300.0,0.00037056,2]
[422077328,1778553045000,-853.86030012,0.00037056,2]
[422077331,1778553045000,-300.0,0.00037056,2]
[422077338,1778553045000,-300.0,0.00037056,2]
[422077320,1778553045000,-300.0,0.00037056,2]
[422077337,1778553045000,-309.46605895,0.00037056,2]
[422077329,1778553045000,-300.0,0.00037056,2]
[422077330,1778553045000,-1911.66155628,0.00037056,2]
[422077326,1778553045000,-300.0,0.00037056,2]
[422077339,1778553045000,-864.10865205,0.00037056,2]
[422077333,1778553045000,-526.68525168,0.00037056,2]
[422077336,1778553045000,-1146.71946024,0.00037056,2]
[422077351,1778553045000,-451.72868137,0.00037056,2]
[422077327,1778553045000,-300.0,0.00037056,2]
[422077350,1778553045000,-300.0,0.00037056,2]
[422077349,1778553045000,-576.93890108,0.00037056,2]
[422077341,1778553045000,-1809.24690158,0.00037056,2]
[422077340,1778553045000,-300.0,0.00037056,2]
[422077343,1778553045000,-300.0,0.00037056,2]
[422077346,1778553045000,-300.0,0.00037056,2]
[422077342,1778553045000,-300.0,0.00037056,2]
[422077345,1778553045000,-310.77293504,0.00037056,2]
[422077344,1778553045000,-300.0,0.00037056,2]
[422077348,1778553045000,-300.0,0.00037056,2]
[422077347,1778553045000,-463.6616139,0.00037056,2]
[422077335,1778553045000,-300.0,0.00037056,2]
[422077321,1778553045000,-300.45062341,0.00037056,2]
[422077298,1778553045000,-300.0,0.00037056,2]
[422077319,1778553045000,-300.0,0.00037056,2]
[422077294,1778553045000,-300.0,0.00037056,2]
[422077296,1778553045000,-300.0,0.00037056,2]
[422077295,1778553045000,-300.0,0.00037056,2]
[422077299,1778553045000,-300.0,0.00037056,2]
[422077297,1778553045000,-300.0,0.00037056,2]
[422077300,1778553045000,-300.0,0.00037056,2]
[422077301,1778553045000,-300.0,0.00037056,2]
[422077303,1778553045000,-300.0,0.00037056,2]
[422077302,1778553045000,-492.49408754,0.00037056,2]
[422077305,1778553045000,-300.0,0.00037056,2]
[422077309,1778553045000,-300.0,0.00037056,2]
[422077304,1778553045000,-300.0,0.00037056,2]
[422077307,1778553045000,-300.0,0.00037056,2]
[422077312,1778553045000,-527.54022817,0.00037056,2]
[422077310,1778553045000,-300.0,0.00037056,2]
[422077311,1778553045000,-300.0,0.00037056,2]
[422077308,1778553045000,-604.21547136,0.00037056,2]
[422077306,1778553045000,-300.0,0.00037056,2]
[422077322,1778553045000,-348.36222459,0.00037056,2]
[422077323,1778553045000,-300.0,0.00037056,2]
[422077325,1778553045000,-300.0,0.00037056,2]
[422077324,1778553045000,-300.0,0.00037056,2]
[422077313,1778553045000,-300.0,0.00037056,2]
[422077314,1778553045000,-1066.50381929,0.00037056,2]
[422077316,1778553045000,-725.78568352,0.00037056,2]
[422077317,1778553045000,-300.0,0.00037056,2]
[422077315,1778553045000,-893.04482543,0.00037056,2]
[422077318,1778553045000,-301.67321972,0.00037056,2]
[422077352,1778553045000,-300.0,0.00037056,2]
[422077353,1778553045000,-300.0,0.00037056,2]
[422077354,1778553045000,-300.0,0.00037056,2]
[422077388,1778553045000,-151.0,0.00037646,2]
[422077386,1778553045000,-151.0,0.00037591,2]
[422077397,1778553045000,-151.0,0.00037866,2]
[422077389,1778553045000,-151.0,0.00037701,2]
[422077393,1778553045000,-151.0,0.00037811,2]
[422077391,1778553045000,-151.0,0.00037756,2]
[422077390,1778553045000,-1500.0,0.0003775,5]
[422077395,1778553045000,-1328.27659266,0.00037864,2]
[422077396,1778553045000,-181.08010149,0.00037864,2]
[422077392,1778553045000,-150.0,0.0003778,2]
[422077394,1778553045000,-503.0,0.00037819,16]
[422077398,1778553045000,-256.0,0.00037916,120]
[422077387,1778553045000,-3176.4,0.000376,14]
[422077400,1778553045000,-151.0,0.00037976,2]
[422077405,1778553045000,-261.68,0.00038234,13]
[422077401,1778553045000,-151.0,0.00038031,2]
[422077408,1778553045000,-1592.5,0.00038329,120]
[422077406,1778553045000,-167.75,0.00038234,13]
[422077402,1778553045000,-285.17586505,0.00038065,83]
[422077403,1778553045000,-275.32714793,0.000381,33]
[422077407,1778553045000,-312.76767965,0.00038298,5]
[422077404,1778553045000,-516.5,0.00038125,30]
[422077410,1778553045000,-1845.0,0.00038329,120]
[422077409,1778553045000,-1592.5,0.00038329,120]
[422077362,1778553045000,-152.0,0.00037316,2]
[422077412,1778553045000,-158.82843331,0.00038329,120]
[422077399,1778553045000,-151.0,0.00037921,2]
[422077385,1778553045000,-151.0,0.00037536,2]
[422077411,1778553045000,-1845.0,0.00038329,120]
[422077380,1778553045000,-228.68456867,0.00037316,2]
[422077384,1778553045000,-285.60512736,0.00037512,76]
[422077363,1778553045000,-152.0,0.00037316,2]
[422077361,1778553045000,-1280.88388878,0.00037316,2]
[422077356,1778553045000,-508.81029755,0.00037189,30]
[422077357,1778553045000,-170.54795026,0.000372,120]
[422077358,1778553045000,-1000.0,0.00037202,5]
[422077360,1778553045000,-517.26831152,0.00037316,2]
[422077359,1778553045000,-1002.10346774,0.00037202,5]
[422077365,1778553045000,-152.0,0.00037316,2]
[422077364,1778553045000,-152.0,0.00037316,2]
[422077366,1778553045000,-152.0,0.00037316,2]
[422077368,1778553045000,-152.0,0.00037316,2]
[422077369,1778553045000,-152.0,0.00037316,2]
[422077355,1778553045000,-202.97052516,0.00037063,120]
[422077367,1778553045000,-152.0,0.00037316,2]
[422077370,1778553045000,-152.0,0.00037316,2]
[422077382,1778553045000,-151.0,0.00037426,2]
[422077379,1778553045000,-219.23011724,0.00037316,2]
[422077381,1778553045000,-151.0,0.00037371,2]
[422077377,1778553045000,-151.0,0.00037316,2]
[422077378,1778553045000,-211.40802048,0.00037316,2]
[422077383,1778553045000,-151.0,0.00037481,2]
[422077375,1778553045000,-152.0,0.00037316,2]
[422077374,1778553045000,-174.61919141,0.00037316,2]
[422077372,1778553045000,-152.0,0.00037316,2]
[422077373,1778553045000,-152.0,0.00037316,2]
[422077371,1778553045000,-152.0,0.00037316,2]
[422077376,1778553045000,-152.0,0.00037316,2]
[422077451,1778553046000,-187.78006525,0.00038412,2]
[422077450,1778553046000,-1377.42282659,0.00038412,2]
[422077448,1778553046000,-1065.11,0.00038385,2]
[422077449,1778553046000,-522.58,0.000384,30]
[422077447,1778553046000,-1065.11,0.00038385,2]
[422077445,1778553046000,-1065.11,0.00038383,2]
[422077441,1778553046000,-1065.11,0.00038381,2]
[422077443,1778553046000,-1065.11,0.00038383,2]
[422077452,1778553046000,-3047.2589,0.00038488,2]
[422077446,1778553046000,-1065.1,0.00038385,2]
[422077442,1778553046000,-1065.11,0.00038381,2]
[422077467,1778553046000,-194.72792766,0.0003896,2]
[422077455,1778553046000,-3047.2589,0.00038625,2]
[422077453,1778553046000,-24029.49024116,0.0003859,7]
[422077457,1778553046000,-1000.0,0.00038741,120]
[422077466,1778553046000,-1428.38747117,0.0003896,2]
[422077465,1778553046000,-150.63637523,0.00038947,7]
[422077456,1778553046000,-1562.0,0.0003863,30]
[422077458,1778553046000,-3047.2589,0.00038762,2]
[422077464,1778553046000,-1562.0,0.00038904,30]
[422077461,1778553046000,-3047.2589,0.00038899,2]
[422077463,1778553046000,-2000.0,0.000389,7]
[422077459,1778553046000,-200.0,0.00038855,6]
[422077439,1778553046000,-650.0,0.0003837,5]
[422077454,1778553046000,-191.91529612,0.00038615,2]
[422077440,1778553046000,-701.35194092,0.00038373,5]
[422077431,1778553046000,-308.95302127,0.00038356,2]
[422077436,1778553046000,-350.0,0.00038362,5]
[422077460,1778553046000,-200.0,0.00038862,6]
[422077415,1778553046000,-3047.2589,0.00038351,2]
[422077420,1778553046000,-500.0,0.00038356,2]
[422077419,1778553046000,-500.0,0.00038356,2]
[422077418,1778553046000,-500.0,0.00038356,2]
[422077416,1778553046000,-304.6949,0.00038351,2]
[422077417,1778553046000,-310.7108,0.00038351,2]
[422077413,1778553046000,-151.0,0.00038337,14]
[422077414,1778553046000,-39326.1736,0.00038341,30]
[422077421,1778553046000,-500.0,0.00038356,2]
[422077423,1778553046000,-500.0,0.00038356,2]
[422077425,1778553046000,-1000.0,0.00038356,7]
[422077427,1778553046000,-931.8569684,0.00038356,7]
[422077429,1778553046000,-150.0,0.00038356,10]
[422077428,1778553046000,-505.95760392,0.00038356,2]
[422077424,1778553046000,-299.42619551,0.00038356,2]
[422077422,1778553046000,-500.0,0.00038356,2]
[422077432,1778553046000,-1562.0,0.00038356,30]
[422077426,1778553046000,-1000.0,0.00038356,7]
[422077430,1778553046000,-231.88832598,0.00038356,10]
[422077434,1778553046000,-150.0,0.00038356,5]
[422077433,1778553046000,-829.33,0.00038356,120]
[422077444,1778553046000,-1065.11,0.00038383,2]
[422077435,1778553046000,-250.0,0.00038359,5]
[422077437,1778553046000,-450.0,0.00038364,5]
[422077438,1778553046000,-550.0,0.00038367,5]
[422077462,1778553046000,-50000.0,0.000389,120]
[422077502,1778553046000,-70000.0,0.0003945,120]
[422077470,1778553046000,-25000.0,0.00039,15]
[422077496,1778553046000,-5800.0,0.0003931,14]
[422077497,1778553046000,-3047.2589,0.0003931,2]
[422077524,1778553046000,-1000.0,0.00039841,120]
[422077498,1778553046000,-304.6949,0.0003931,2]
[422077500,1778553046000,-166.0,0.0003936,11]